Cogmind - Beta 16 @@@ ROGUE MODE // 2025.11.23 @ 11:51:10 Player: cingulata Result: Escaped! Performance ------------- Evolutions (9) 4500 Regions Visited (21) 4200 Robots Destroyed (405) 2025 Value Destroyed (16044) 16044 Prototype IDs (17) 340 Alien Tech Used (0) 0 Bonus (11980) 11980 TOTAL SCORE: 39089 Bonus ------- High Alert Combat Kills 3825 Follower Combat Kills 3085 Entered Garrisons 400 Used RIF Installer 1000 Built Enhanced Grunts 300 Met R17 at Cetus 500 Met R17 at Research 2000 Win 3000 Friendly Fire -2130 Cogmind --------- Core Integrity 899/1600 Matter 4/300 Energy 654/659 System Corruption 14% Temperature Cool (-197) Movement Walking (85) Ox1 Location To Epsilon Eridani Parts ------- > --- POWER (3) -------- Quantum-Particle Reactor > --- PROPULSION (6) --- Myomer Leg Shield-Biometal Exoskeleton > --- UTILITY (12) ----- Armored Scrap Engine Advanced Cryofiber Web Huge Storage Unit Advanced Energy Well Enhanced Optical Array Advanced Signal Interpreter Advanced Targeting Computer Core Analyzer Improved Heavy Armor Plating High-powered Tractor Beam > --- WEAPON (4) ------- HERF Cannon Micro-nuke Launcher Hpw. Accelerated Construct/C > --- INVENTORY (25) --- Light Quantum Reactor Light Quantum Reactor Enhanced Optical Array IFF Parser Long-range Terrain Scanner Seismic Detector Advanced Targeting Computer Energy Filter Improved Transmission Jammer Centrium Medium Armor Plating Advanced Remote Force Field Improved Point Defense System Relay Coupler [NC] (35) Nova Cannon Advanced Datajack Advanced Remote Datajack Kinetic Spear Peak State ------------ > --- POWER ------------ Light Antimatter Reactor Quantum-Particle Reactor > --- PROPULSION ------- Shield-Biometal Exoskeleton Advanced Surge Thruster > --- UTILITY ---------- Armored Scrap Engine Advanced Cryofiber Web Huge Storage Unit Enhanced Optical Array Experimental Sensor Array Advanced Signal Interpreter Long-range Terrain Scanner Advanced Targeting Computer Core Analyzer Improved Transmission Jammer Centrium Medium Armor Plating > --- WEAPON ----------- Compact HERF Cannon Hpw. Accelerated Construct/C Kinetic Spear > --- INVENTORY -------- Light Quantum Reactor Advanced Heat Sink Advanced Energy Well Matter Compressor Enhanced Optical Array IFF Parser Seismic Detector Advanced Targeting Computer Energy Filter Advanced Phase Shifter Improved Heavy Armor Plating Advanced Remote Force Field Improved Point Defense System Relay Coupler [NC] High-powered Tractor Beam HERF Cannon Nova Cannon Gamma Bomb Array Micro-nuke Launcher Fusion Bomb Launcher Advanced Datajack Advanced Remote Datajack [Rating: 192] Favorites ----------- Power Constructs Engine Heavy Ion Engine Power Core Nuclear Core Reactor Constructs Propulsion Improved Treads Treads Improved Treads Leg Constructs Wheel Armored Wheel Flight Unit Advanced Surge Thruster Utility Advanced Targeting Computer Device Armored Scrap Engine Storage Huge Storage Unit Processor Advanced Targeting Computer Hackware Improved Hacking Suite Protection Centrium Medium Armor Plating Weapon Constructs Energy Gun Constructs Energy Cannon HERF Cannon Ballistic Gun Assault Rifle Ballistic Cannon Constructs Launcher Advanced EMP Blaster Special Weapon Improved Remote Datajack Slashing Weapon Katana Piercing Weapon Kinetic Spear Special Melee Weapon Datajack Build | -11 -10 -10 -10 -9 -8 -8 -8 -6 -6 -6 -6 -5 -5 -4 -4 -4 -4 -4 -3 -2 -1 ------- Run | Yrd Mat Min Exi Min Mat Sto Rec Fac Ext Cet Arc Fac Gar Fac Was Fac Gar Fac Res Res Acc Slots Evolved 18 | . . . . . 4 . . 4 . . . 2 . 2 . . . . 2 2 2 Power 2 | . . . . . . . . 1 . . . . . . . . . . . 1 . Propulsion 4 | . . . . . 2 . . . . . . . . 1 . . . . . 1 . Utility 10 | . . . . . 2 . . 2 . . . 2 . . . . . . 2 . 2 Weapon 2 | . . . . . . . . 1 . . . . . 1 . . . . . . . Parts Attached 142 | 4 9 9 1 1 20 19 5 4 11 3 5 2 8 1 1 3 1 2 11 5 17 Power 16 | . 1 . . . 2 2 . . 6 . . . 2 . . . . . . . 3 Engine 7 | . 1 . . . . 2 . . 4 . . . . . . . . . . . . Core 4 | . . . . . 2 . . . 2 . . . . . . . . . . . . Reactor 5 | . . . . . . . . . . . . . 2 . . . . . . . 3 Propulsion 19 | 2 2 3 . 1 7 1 1 . . . . . . . . . . . . . 2 Treads 6 | 1 1 1 . . 2 1 . . . . . . . . . . . . . . . Leg 1 | . . . . . . . . . . . . . . . . . . . . . 1 Wheel 11 | 1 1 2 . 1 5 . 1 . . . . . . . . . . . . . . Hover . | . . . . . . . . . . . . . . . . . . . . . . Flight 1 | . . . . . . . . . . . . . . . . . . . . . 1 Utility 65 | 1 4 4 1 . 7 6 2 3 3 1 5 2 3 . . 3 1 2 6 4 7 Device 26 | 1 . 2 . . 1 3 1 2 . . 3 . 2 . . 1 1 1 2 2 4 Storage 9 | . 3 . 1 . 2 . . . . . 1 . . . . . . . 2 . . Processor 8 | . . . . . 2 2 . . . . . . . . . 1 . . . 2 1 Hackware 5 | . . . . . . . . . . . . 2 . . . 1 . . 2 . . Protection 17 | . 1 2 . . 2 1 1 1 3 1 1 . 1 . . . . 1 . . 2 Artifact . | . . . . . . . . . . . . . . . . . . . . . . Weapon 42 | 1 2 2 . . 4 10 2 1 2 2 . . 3 1 1 . . . 5 1 5 Energy Gun 1 | . . . . . . . 1 . . . . . . . . . . . . . . Energy Cannon 3 | . . . . . . . . . . . . . . . . . . . . . 3 Ballistic Gun 8 | 1 1 1 . . 1 3 . . 1 . . . . . . . . . . . . Ballistic Cannon 9 | . . 1 . . 1 4 . . . . . . 3 . . . . . . . . Launcher 10 | . . . . . 2 2 . 1 . 1 . . . . 1 . . . 1 . 2 Special Weapon 3 | . 1 . . . . . . . . . . . . . . . . . 2 . . Impact Weapon . | . . . . . . . . . . . . . . . . . . . . . . Slashing Weapon 4 | . . . . . . 1 . . 1 1 . . . . . . . . 1 . . Piercing Weapon 1 | . . . . . . . . . . . . . . . . . . . . 1 . Special Melee Weapon 3 | . . . . . . . 1 . . . . . . 1 . . . . 1 . . Unidentified Prototypes 8 | . . 1 . . 1 1 1 . . 1 2 . . . . . . . . 1 . Corrupted Parts 1 | . . . . . . . . . . . . . . . . . . . . . 1 System Corruption 2 | . . . . . . . . . . . . . . . . . . . . . 2 Parts Lost 54 | . 1 1 . . 7 2 2 7 13 1 . . 7 . . . . . . . 13 Power 11 | . . . . . 1 . . 2 4 . . . 1 . . . . . . . 3 Propulsion 8 | . 1 . . . 3 1 . 2 1 . . . . . . . . . . . . Utility 19 | . . . . . 2 1 1 1 4 1 . . 3 . . . . . . . 6 Weapon 16 | . . 1 . . 1 . 1 2 4 . . . 3 . . . . . . . 4 Highest Loss Streak 9 | . 1 1 . . 2 1 1 3 9 1 . . 2 . . . . . . . 8 To Critical Strikes . | . . . . . . . . . . . . . . . . . . . . . . Average Backups 20 | 4 13 19 20 20 19 24 19 14 19 20 24 21 22 24 21 21 24 24 23 23 22 Power . | 1 1 1 1 1 1 1 . . 1 1 2 2 1 . . . 1 1 . . . Propulsion 2 | 2 4 6 6 6 5 4 2 . . . . . 2 2 2 1 . . . . . Utility 10 | . 2 6 7 7 5 8 8 9 11 12 15 13 12 14 15 17 19 18 15 16 13 Weapon 5 | . 5 6 6 6 7 9 6 3 5 5 4 4 5 8 3 2 2 3 6 6 5 Tool/Special . | . . . . . . . . . . . . . . . . . . . . . . Unused Backups 69 | 6 6 2 . . 6 4 5 . 2 5 3 . 1 . 7 . 2 3 4 1 12 Power 10 | . 2 1 . . 1 . 1 . . . 1 . . . . . . 1 1 . 2 Propulsion 13 | 4 . . . . . 1 3 . . 1 . . . . 2 . 1 . . . 1 Utility 18 | . 2 . . . . 1 . . . . 2 . . . 1 . 1 1 2 1 7 Weapon 27 | 2 2 1 . . 5 2 1 . 2 4 . . 1 . 4 . . 1 1 . 1 Tool/Special 1 | . . . . . . . . . . . . . . . . . . . . . 1 Average Slot Usage (%) 75 | . 99 99 100 100 95 99 78 61 64 63 57 59 65 59 58 57 57 56 60 57 64 Engine 5 | . 14 14 14 14 . 2 8 1 10 7 . . . . . . . . . . . Core 1 | . . . . . 8 6 . 4 1 5 2 . . . . . 2 5 1 . . Reactor 1 | . . . . . . . . . . . 3 5 7 6 5 5 2 . 2 4 6 Treads 7 | . 14 14 14 14 15 18 11 . . 3 4 . . . . . . . 2 2 . Leg 1 | . . . . . . . . 2 5 1 1 5 . . 1 . 3 5 1 . 1 Wheel 7 | . 13 13 14 14 17 18 13 3 . . . . . . . . . . . . . Device 11 | . 13 12 14 12 9 4 5 18 15 6 9 14 13 15 15 13 10 11 15 16 19 Storage 7 | . 14 14 14 14 9 9 9 6 6 6 6 5 5 5 5 5 5 5 6 4 4 Processor 8 | . . . . . 8 17 12 6 6 6 6 5 5 5 5 9 10 10 9 9 15 Protection 4 | . . 1 . 1 8 4 3 1 2 12 7 5 10 10 10 5 5 5 5 4 3 Energy Cannon 1 | . . . . . . . 3 3 . . 1 5 1 . . . 2 2 . 1 2 Ballistic Gun 7 | . 27 26 28 28 11 11 4 5 5 5 4 . 1 . . . . . . . . Ballistic Cannon 2 | . . 1 . . 6 5 . . . . . . 5 10 7 6 7 7 3 2 3 Slashing Weapon 1 | . . . . . . . 2 4 3 1 4 5 1 . . . . . . 2 . Peak Build Rating 192 | 7 10 18 11 12 30 34 48 66 77 88 104 110 118 114 126 126 136 141 155 164 192 Average Rating 72 | 6 8 10 11 11 23 31 38 56 65 80 90 103 107 105 118 120 132 133 146 158 171 On Entrance 73 | 6 7 10 11 11 12 29 32 43 54 65 87 101 109 108 114 121 126 135 130 148 153 Avg Prop Armor Cover (%) 12 | 3 10 10 11 10 11 14 14 . . . . . . . . . . . . . 2 Naked Turns . | . . . . . . . . . . . . . . . . . . . . . . Heaviest Build 168 | 14 50 50 50 50 106 105 104 119 121 120 116 117 162 140 158 138 148 154 156 148 168 Greatest Support 199 | 20 23 23 10 12 32 24 73 104 104 36 86 86 86 86 160 160 160 138 193 193 199 Greatest Overweight (x) 7 | . 4 4 4 4 5 4 7 1 3 3 3 1 1 1 1 . 1 1 1 . 1 Average Overweight (x) 1 | . 2 3 4 3 2 3 3 . 1 3 1 1 1 1 . . . . . . . Largest Inventory Capacity 25 | 8 20 20 20 20 25 25 25 25 25 25 25 25 25 25 25 25 25 25 25 25 25 Average Capacity 23 | 8 15 20 20 20 21 25 25 25 25 25 25 25 25 25 25 25 25 25 25 25 25 Most Carried 25 | 6 20 20 20 20 22 25 25 18 23 24 25 25 25 25 25 25 25 25 25 25 25 Average Carried 20 | 4 13 19 20 20 19 24 19 14 19 20 24 21 22 24 22 22 24 24 24 24 23 Final Capacity 25 | 8 20 20 20 20 25 25 25 25 25 25 25 25 25 25 25 25 25 25 25 25 25 Final Carried 25 | 5 20 20 20 20 22 24 23 18 16 24 22 25 25 25 20 25 25 25 25 25 24 Scrap Engine Consumption 280 | . . . . . . . 49 28 49 17 13 5 18 3 29 10 4 12 23 12 8 Constructs Created 10 | . . . . . . . 3 2 3 . . . 2 . . . . . . . . Constructs Modified 119 | . . . . . . . 19 10 17 11 6 . 7 2 14 3 6 6 9 5 4 Class Distribution -------------------- 27% | Mutant 27% | Construct 16% | Commander-Mutant 11% | Commander-Construct 10% | Scavenger-Construct 3% | Ninja Dominant Class ---------------- Mutant | -10/Materials Mutant | -10/Mines Mutant | -10/Exiles Mutant | -9/Mines Mutant | -8/Materials Mutant | -8/Storage Commander-Mutant | -8/Recycling Construct | -6/Factory Construct | -6/Extension Commander-Construct | -6/Cetus Construct | -6/Archives Construct | -5/Factory Scavenger-Construct | -5/Garrison Scavenger-Mutant | -4/Factory Construct | -4/Waste Construct | -4/Factory Construct | -4/Garrison Construct | -4/Factory Scavenger-Construct | -3/Research Construct | -2/Research Ninja | -1/Access Resources | -11 -10 -10 -10 -9 -8 -8 -8 -6 -6 -6 -6 -5 -5 -4 -4 -4 -4 -4 -3 -2 -1 ----------- Run | Yrd Mat Min Exi Min Mat Sto Rec Fac Ext Cet Arc Fac Gar Fac Was Fac Gar Fac Res Res Acc Matter Collected 12720 | 340 619 357 . 70 776 1389 271 512 1175 88 74 67 668 . 384 146 380 856 978 1035 2535 Remotely 2259 | . . . . . . . . . . . . . . . . . 122 237 . 342 1558 Salvage Created 17128 | 200 775 608 . 97 920 1175 1593 1472 1285 260 396 368 1252 . 641 184 454 1235 344 618 3251 Parts 813 | 16 48 31 . 5 66 65 59 73 72 9 21 23 46 . 5 5 26 50 15 29 149 Haulers Intercepted 16 | . 2 . . . 4 3 2 . . . . 1 . . . . . . . 2 2 Recyclers Shooed 16 | . 2 . . . 1 1 1 7 . . . . . . . . . 1 . 1 2 Parts Field Recycled . | . . . . . . . . . . . . . . . . . . . . . . Retrieved Matter . | . . . . . . . . . . . . . . . . . . . . . . Parts Self-Destructed . | . . . . . . . . . . . . . . . . . . . . . . Prevented . | . . . . . . . . . . . . . . . . . . . . . . Parts Restored . | . . . . . . . . . . . . . . . . . . . . . . Kills | -11 -10 -10 -10 -9 -8 -8 -8 -6 -6 -6 -6 -5 -5 -4 -4 -4 -4 -4 -3 -2 -1 ------- Run | Yrd Mat Min Exi Min Mat Sto Rec Fac Ext Cet Arc Fac Gar Fac Was Fac Gar Fac Res Res Acc Combat Hostiles Destroyed 281 | . 14 10 . 2 18 27 5 26 25 3 1 9 34 . . 1 17 18 9 7 55 Melee 3 | . . . . . . . 1 . 1 . . . 1 . . . . . . . . Guns 56 | . 14 9 . 2 2 11 4 3 9 . 1 . 1 . . . . . . . . Cannons 97 | . . 1 . . 9 10 . 10 . . . 9 7 . . 1 7 11 4 7 21 AOE 107 | . . . . . 7 6 . 13 14 . . . 20 . . . 7 6 4 . 30 Classes Destroyed 24 | 2 6 2 . . 1 5 3 . . . . . 1 . . . . . 1 . 3 Worker 17 | . 1 . . . 2 1 1 3 2 . . . . . . 1 . 1 1 . 4 Builder 18 | . . 1 . . 2 3 3 2 3 . . . . . . . . 3 . . 1 Tunneler 9 | 5 . 1 . . 1 . . 1 . . . . . . . . . . 1 . . Hauler 17 | . 2 . . . 4 3 3 . . . . 1 . . . . . . . 2 2 Recycler 27 | 1 3 2 . . 1 1 9 3 2 . . . . . . 1 . 1 . . 3 Mechanic 2 | . . . . . . 1 . . . . . . . . . . . 1 . . . Operator 8 | . 1 . . . . 1 . 1 1 . 4 . . . . . . . . . . Watcher 15 | . 2 . . . 2 1 . . 1 . . 1 . . . . . 4 . 1 3 Swarmer 90 | . 9 2 . . 7 4 . 5 7 . . 8 11 . . . 14 3 5 . 15 Cutter 2 | . . . . . . . . . . . . . . . . . . . . . 2 Grunt 88 | . 5 6 . 2 6 10 1 10 10 . . . 15 . . . 3 9 . . 11 Brawler 6 | . . . . . . 2 1 1 1 . . . . . . . . . . . 1 Duelist 6 | . . . . . . 2 . 1 . . . . 2 . . . . 1 . . . Protector 2 | . . . . . . 1 . . . . . . . . . . . . . . 1 Sentry 41 | . . 2 . . 4 7 4 3 7 . 1 1 5 . . 1 . 2 . 1 3 Demolisher 4 | . . . . . . 1 1 1 . . . . . . . . . . 1 . . Specialist 4 | . . . . . . . . . . . . . . . . . . . . . 4 Hunter 19 | . . . . . 1 . . 3 . . . . . . . . . 1 2 2 10 Programmer 16 | . . . . . . . 1 2 . . . . . . . . . 2 . 4 7 Heavy 1 | . . . . . . . . . . . . . . . . . . . . . 1 Behemoth 1 | . . . . . . . . . . . . . 1 . . . . . . . . Cetus Guard 3 | . . . . . . . . . . 3 . . . . . . . . . . . Enhanced Grunt 2 | . . . . . . . . . . . 2 . . . . . . . . . . Striker 1 | . . . . . . . . . . . . . . . . . . . 1 . . Scientist 2 | . . . . . . . 2 . . . . . . . . . . . . . . Scrapper 1 | . . . . . . . 1 . . . . . . . . . . . . . . Wasp 2 | . . . . . . . . . . . . . . . 1 . 1 . . . . Butcher 1 | . . . . . . . . . . 1 . . . . . . . . . . . Martyr 2 | . . . . . . . . . . . . . . . 2 . . . . . . Best Kill Streak 12 | 2 4 2 . 2 7 10 4 8 9 3 1 9 12 . . 2 8 6 5 3 9 Combat Bots Only 12 | . 3 2 . 2 4 8 1 6 8 3 1 8 12 . . 1 8 4 5 2 9 Max Kills in Single Turn 5 | 1 2 1 . 1 4 3 2 5 2 1 1 1 3 . 1 1 4 4 2 1 3 Gunslinging 1 | . 1 . . . . . 1 . . . . . . . . . . . . . . Exploded 4 | . . . . . 3 3 . 2 2 . . . 3 . . . 4 3 2 . 3 Melee 1 | . . . . . . . 1 . 1 . . . 1 . . . . . . . . Uniques/NPCs Destroyed . | . . . . . . . . . . . . . . . . . . . . . . Combat | -11 -10 -10 -10 -9 -8 -8 -8 -6 -6 -6 -6 -5 -5 -4 -4 -4 -4 -4 -3 -2 -1 -------- Run | Yrd Mat Min Exi Min Mat Sto Rec Fac Ext Cet Arc Fac Gar Fac Was Fac Gar Fac Res Res Acc Hostile Shots Fired 2011 | . 42 45 . 8 88 105 25 247 448 6 1 57 154 9 . 2 86 160 37 64 427 Missed 738 | . 10 12 . 3 30 28 7 99 172 4 . 16 50 3 . . 31 50 9 16 198 Deflected 7 | . . . . . . . . . . . . . . . . . . . . . 7 Hits 1273 | . 32 33 . 5 58 77 18 148 276 2 1 41 104 6 . 2 55 110 28 48 229 Melee 17 | . . . . . . 3 1 5 . . . . . . . . . 2 2 . 4 Projectile 1256 | . 32 33 . 5 58 74 17 143 276 2 1 41 104 6 . 2 55 108 26 48 225 AOE 12 | . . . . . . . . . . . . . . . . . . . 9 . 3 Critical Strikes 44 | . 2 . . . 4 6 1 2 1 1 . 1 6 . . . 2 8 . 1 9 Part Disruptions 1 | . . . . . . . . . . . . . . . . . . 1 . . . Damage Taken 22256 | . 329 425 . 71 941 1278 362 2139 3014 53 74 676 1546 178 . 51 1038 2184 991 881 6025 Core 2309 | . 69 83 . . 93 126 25 247 435 . 46 36 139 . . . 34 117 77 81 701 Absorbed by Shields 1971 | . . . . . . . . 23 358 . . . 558 . . . 89 280 36 304 323 Redirected to Shielding 25 | . 5 20 . . . . . . . . . . . . . . . . . . . Regen/Repaired (Parts) 7398 | . . . . . . 34 . 595 742 89 222 . 415 30 687 . 569 1632 1054 469 860 Core Remaining (%) 68 | 100 . . . 39 . . 55 . . . 14 . 82 . . . . 86 94 94 56 Volleys Fired 949 | 25 56 32 . 5 68 73 23 116 73 6 14 27 80 . 30 10 32 51 43 38 147 Largest 3 | 2 2 2 . 2 2 2 2 2 2 1 1 1 3 . 2 2 2 2 1 1 2 Hottest 166 | 40 100 50 . 40 60 74 60 60 53 36 32 32 156 . 120 141 141 150 95 95 166 Shots Fired 1372 | 50 110 64 . 10 131 135 33 144 103 6 14 27 105 . 60 18 46 89 43 38 146 Gun 597 | 50 108 59 . 10 83 81 24 56 77 . 14 . 5 . 23 7 . . . . . Cannon 617 | . . 5 . . 43 45 9 71 . . . 27 67 . 37 11 40 83 31 38 110 Launcher 150 | . . . . . 5 9 . 17 26 6 . . 33 . . . 6 6 6 . 36 Special 8 | . 2 . . . . . . . . . . . . . . . . . 6 . . Kinetic 944 | 50 108 64 . 10 126 126 24 56 55 . . . 28 . 37 11 32 58 29 38 92 Thermal 254 | . 2 . . . . . 9 71 22 . 14 27 44 . 23 7 8 25 2 . . Explosive 88 | . . . . . 3 8 . 11 19 . . . 12 . . . 3 4 2 . 26 Electromagnetic 80 | . . . . . 2 1 . 6 7 6 . . 21 . . . 3 2 4 . 28 Robot Hit Streak 20 | 8 11 19 . 6 18 20 8 14 14 . 3 6 15 . 13 6 8 14 6 8 9 Robot Miss Streak 8 | 3 5 3 . 1 3 5 2 3 3 . 4 3 3 . 3 1 4 8 3 2 3 Penetration Max 1 | . . . . . . . . . 1 . . . 1 . 1 . 1 1 . . . Secondary Targets 6 | . 3 . . . . 1 1 . 1 . . . . . . . . . . . . Max Gunslinging Chain 1 | . 1 . . . . 1 1 . 1 . . . . . . . . . . . . Shots Hit Robots 1004 | 29 62 40 . 7 94 99 90 99 89 . 23 17 75 . 43 11 26 55 24 30 91 Core Hits 788 | 10 37 22 . 4 62 111 23 69 88 8 9 13 67 . 20 6 29 58 13 11 128 Critical Kills 6 | . . 1 . . . 1 . . . . 2 1 1 . . . . . . . . Critical Parts Destroyed 6 | . . . . . 1 1 . . 1 . . . 2 . . . . . . . 1 Critical Strikes 48 | . . 1 . . 1 2 2 . 3 . 3 1 8 . 3 4 2 9 5 1 3 Burn 1 | . . . . . . . . . . . . . 1 . . . . . . . . Destroy 12 | . . 1 . . 1 2 . . 1 . 2 1 3 . . . . . . . 1 Blast 30 | . . . . . . . . . . . . . 4 . 3 4 2 9 5 1 2 Sever 5 | . . . . . . . 2 . 2 . 1 . . . . . . . . . . Melee Attacks 132 | . . . . . . 1 68 3 12 . 17 . 8 . . . . . . 2 21 Impact . | . . . . . . . . . . . . . . . . . . . . . . Slashing 68 | . . . . . . 1 31 3 7 . 17 . 8 . . . . . . 1 . Piercing 22 | . . . . . . . . . . . . . . . . . . . . 1 21 Sneak Attacks 86 | . . . . . . . 62 2 5 . 12 . . . . . . . . 2 3 Combat Hostiles . | . . . . . . . . . . . . . . . . . . . . . . Follow-up Attacks . | . . . . . . . . . . . . . . . . . . . . . . Damage Inflicted 52497 | 309 800 551 . 97 1906 3506 2370 4959 4545 794 1437 704 5093 . 1697 429 2231 4407 2109 2434 12119 Guns 6774 | 309 800 483 . 97 763 968 327 672 1398 . 258 . 74 . 491 134 . . . . . Cannons 21230 | . . 68 . . 646 945 268 1958 . . . 704 1649 . 1206 295 1248 2941 1230 2037 6035 Explosions 20216 | . . . . . 497 1582 . 2180 2809 794 . . 3223 . . . 983 1400 812 240 5696 Melee 4056 | . . . . . . . 1775 149 293 . 1179 . 147 . . . . . . 157 356 Ramming 221 | . . . . . . 11 . . 45 . . . . . . . . 66 67 . 32 Kinetic 20701 | 309 800 551 . 97 1409 1913 327 672 1064 . . . 668 . 1206 295 1012 1757 1069 2037 5515 Thermal 7103 | . . . . . . . 268 1994 334 231 258 704 1108 . 491 134 236 1184 161 . . Explosive 14908 | . . . . . 342 1557 . 1640 2306 . . . 1795 . . . 513 799 601 240 5115 Electromagnetic 5508 | . . . . . 155 25 . 504 503 563 . . 1375 . . . 470 601 211 . 1101 Impact . | . . . . . . . . . . . . . . . . . . . . . . Slashing 3626 | . . . . . . . 1775 149 293 . 1179 . 147 . . . . . . 83 . Piercing 430 | . . . . . . . . . . . . . . . . . . . . 74 356 Highest Corruption 14 | . . . . . 1 1 1 1 1 1 1 . . . . . . 2 . 6 14 Average Corruption 1 | . . . . . 1 1 1 1 1 1 1 . . . . . . 1 . 3 4 Corruption Purged 1 | . . . . . . . . . . . 1 . . . . . . . . . . Corruption Blocked . | . . . . . . . . . . . . . . . . . . . . . . Effects 88 | . . . . . 5 13 26 3 9 5 1 . . . . . . . . 6 20 Message Errors 19 | . . . . . 1 3 7 . 1 2 . . . . . . . . . 2 3 Matter Fused 28 | . . . . . 2 4 9 2 3 2 . . . . . . . . . 3 3 Heat Flow Errors 5 | . . . . . . 2 1 . 1 . . . . . . . . . . . 1 Energy Discharges 15 | . . . . . . 1 4 1 3 . . . . . . . . . . 1 5 Parts Rejected 2 | . . . . . . . . . 1 . . . . . . . . . . . 1 Parts Fused 1 | . . . . . . . 1 . . . . . . . . . . . . . . Data Loss (minor) 4 | . . . . . 1 . 2 . . . . . . . . . . . . . 1 Data Loss (major) 5 | . . . . . 1 2 . . . . 1 . . . . . . . . . 1 Alerts 4 | . . . . . . . 2 . . 1 . . . . . . . . . . 1 Misdirections 1 | . . . . . . . . . . . . . . . . . . . . . 1 Weapon Failures 4 | . . . . . . 1 . . . . . . . . . . . . . . 3 Overload Shots 4 | . . . . . . . . . . . . . 4 . . . . . . . . Overflow Damage 2739 | . . . . . 15 . 307 223 141 . 246 19 116 . 42 . 190 150 174 368 748 Projectiles 1374 | . . . . . . . 15 169 . . . 19 . . 42 . 177 104 104 296 448 Explosions 624 | . . . . . 15 . . 36 117 . . . 111 . . . 13 20 70 59 183 Melee 741 | . . . . . . . 292 18 24 . 246 . 5 . . . . 26 . 13 117 Knockbacks 99 | . . . . . 18 23 . . . . . . . . 8 . 9 9 3 17 12 Impact 1 | . . . . . . . . . . . . . . . . . . 1 . . . Kinetic 91 | . . . . . 16 22 . . . . . . . . 8 . 7 8 3 15 12 Secondary 7 | . . . . . 2 1 . . . . . . . . . . 2 . . 2 . Self-Inflicted Damage 295 | . . . . . 24 51 . 37 26 . . . . . . . 10 . . 92 55 Shots 10 | . . . . . 1 1 . 1 1 . . . . . . . 1 . . 1 4 Rammed 1 | . . . . . . 1 . . . . . . . . . . . . . . . Targets Rammed 9 | . . . . . . 1 . . 2 . . . . . . . . 1 3 . 2 Kicked 8 | . . . . . . . . . 2 . . . . . . . . 1 3 . 2 Crushed . | . . . . . . . . . . . . . . . . . . . . . . Highest Temperature 478 | . 30 14 . 9 45 174 150 200 133 . 11 6 129 . . 9 110 371 228 214 478 Average Temperature 69 | . 14 4 . 4 8 43 60 72 15 . 4 6 34 . . 6 26 79 90 80 129 Received Heat Transfer 3647 | . 117 189 . 42 423 603 120 256 442 . . 9 531 18 . 9 105 361 4 40 378 Effects 5 | . . . . . . . . . . . . . . . . . . 3 . . 2 Energy Bleed 3 | . . . . . . . . . . . . . . . . . . 3 . . . Interference 2 | . . . . . . . . . . . . . . . . . . . . . 2 Siege Activations . | . . . . . . . . . . . . . . . . . . . . . . Martial Activations . | . . . . . . . . . . . . . . . . . . . . . . Shielding Activations 3 | . . . . . . . . . . . . . . . . . . . . . 3 Total Turns 44 | . . . . . . . . . . . . . . . . . . . . . 44 Longest Duration 22 | . . . . . . . . . . . . . . . . . . . . . 22 Robots Disrupted . | . . . . . . . . . . . . . . . . . . . . . . Combat Hostiles . | . . . . . . . . . . . . . . . . . . . . . . Robots Corrupted 19 | . . . . . . . . . 1 3 . . 5 . . . 3 2 1 . 4 Combat Hostiles 18 | . . . . . . . . . 1 3 . . 5 . . . 3 1 1 . 4 Parts Fried 39 | . . . . . . . . 5 5 3 . . 4 . . . 7 4 1 . 10 Impact Corruptions 5 | . . . . . . . . . 1 . . . . . . . 2 2 . . . Robots Melted . | . . . . . . . . . . . . . . . . . . . . . . Combat Hostiles . | . . . . . . . . . . . . . . . . . . . . . . Parts Melted 8 | . . . . . . 1 1 1 1 . . 1 3 . . . . . . . . Heat Transferred 7668 | . . . . . . . 203 1974 999 200 259 777 1284 . 629 185 175 909 74 . . Parts Sabotaged . | . . . . . . . . . . . . . . . . . . . . . . Parts Stolen . | . . . . . . . . . . . . . . . . . . . . . . Parts Stripped . | . . . . . . . . . . . . . . . . . . . . . . Power Chain Reactions 10 | . . . . . . . . 3 1 1 . . 4 . . . . . 1 . . Alert | -11 -10 -10 -10 -9 -8 -8 -8 -6 -6 -6 -6 -5 -5 -4 -4 -4 -4 -4 -3 -2 -1 ------- Run | Yrd Mat Min Exi Min Mat Sto Rec Fac Ext Cet Arc Fac Gar Fac Was Fac Gar Fac Res Res Acc Maximum Alert Level 5 | . . . . . . 3 2 3 3 2 1 . 4 2 . . 4 4 2 . 5 Low Security (%) 55 | 100 100 100 . 100 100 69 42 . 1 5 86 100 11 . 100 100 9 . 76 100 27 Level 1 17 | . . . . . . 2 43 1 25 84 13 . 17 . . . 12 . 17 . 6 Level 2 14 | . . . . . . 11 13 55 57 10 . . 7 100 . . 4 38 6 . 26 Level 3 9 | . . . . . . 15 . 43 15 . . . 60 . . . 19 27 . . 29 Level 4 3 | . . . . . . . . . . . . . 3 . . . 53 34 . . 8 Level 5 . | . . . . . . . . . . . . . . . . . . . . . 1 High Security . | . . . . . . . . . . . . . . . . . . . . . . Max Security . | . . . . . . . . . . . . . . . . . . . . . . Peak Influence 1772 | 10 167 81 . 50 159 978 470 949 756 423 239 172 1136 596 198 143 1312 1328 680 183 1772 Initial 688 | . . 39 . . . 3 370 414 452 409 111 . 106 596 198 . 93 688 680 78 100 Average 294 | . 72 21 . 3 54 246 258 675 500 305 104 85 756 584 37 53 936 892 150 46 614 Influence Increases 14161 | 30 515 261 . 50 603 1589 634 1529 1260 277 201 237 1140 . 18 348 1319 1132 311 367 2340 Destroy 0b10 Robot/C 7040 | . 280 200 . 40 360 820 200 600 800 160 80 180 720 . . 100 600 500 180 140 1080 Destroy 0b10 Robot/NC 615 | 30 45 20 . . 60 65 80 50 60 10 20 10 . . . 15 . 55 10 15 70 Destroy Leader 1222 | . 58 40 . 10 92 200 . 130 116 . . 34 50 . . 42 40 108 30 44 228 Allied During Kill 1834 | . . . . . . 330 132 158 74 85 53 . 46 . . 157 523 276 . . . Successful Hack 322 | . 25 . . . 23 45 39 24 25 . . 5 32 . . 5 10 22 29 . 38 Select Force Hacks 270 | . 60 . . . . . 180 . . . . . . . . . . . 30 . . Disable Machine 405 | . 30 . . . 15 45 . 90 30 . 45 . 15 . . 15 15 30 . 15 60 Anti-Garrison Action 150 | . . . . . . . . . . . . . 100 . . . 50 . . . . Destroy Structure 1488 | . 2 1 . . 8 69 3 52 125 22 3 8 177 . 18 14 66 126 32 93 669 Advance Influence 350 | . . . . . . . . 350 . . . . . . . . . . . . . Partial Spotted 45 | . . . . . . . . 15 . . . . . . . . . . . . 30 Lose Combat Pursuer 420 | . 15 . . . 45 15 . 60 30 . . . . . . . 15 15 . 60 165 Influence Decreases 12389 | 30 414 335 27 50 593 647 1432 758 1453 731 479 85 156 570 584 215 140 1148 1466 341 735 Entered New Map 4095 | . . 62 27 . . 7 582 90 473 323 167 . 46 540 368 . 40 624 616 63 67 Time Decay 6130 | 30 404 264 . 50 388 445 770 398 530 318 292 85 . 30 216 155 . 374 565 278 538 Lost Part 539 | . 10 9 . . 70 20 20 70 130 10 . . 70 . . . . . . . 130 Lost Ally 810 | . . . . . . 70 60 200 20 80 20 . 40 . . 60 100 150 10 . . Purge Threat 815 | . . . . . 135 105 . . 300 . . . . . . . . . 275 . . Squads Dispatched 73 | . 4 . . . 1 6 . 16 7 . . 1 . . . 2 . 11 6 2 17 Investigation 11 | . 3 . . . . . . 1 2 . . . . . . 1 . . 3 . 1 Extermination 9 | . . . . . . . . 2 . . . 1 . . . . . 1 . 2 3 Reinforcement 28 | . 1 . . . 1 2 . 6 5 . . . . . . . . 4 3 . 6 Assault 11 | . . . . . . 3 . . . . . . . . . . . 5 . . 3 Garrison 14 | . . . . . . 1 . 7 . . . . . . . 1 . 1 . . 4 Intercept . | . . . . . . . . . . . . . . . . . . . . . . Searches Triggered . | . . . . . . . . . . . . . . . . . . . . . . Construction Impeded 8 | . . . . . . 1 . 1 4 . . . . . . . . 2 . . . Haulers Reinforced 5 | . . . . . . . . 3 . . . . . . . . . 1 . . 1 Active Scanning Responses . | . . . . . . . . . . . . . . . . . . . . . . Cargo Convoy Interrupts . | . . . . . . . . . . . . . . . . . . . . . . Stealth | -11 -10 -10 -10 -9 -8 -8 -8 -6 -6 -6 -6 -5 -5 -4 -4 -4 -4 -4 -3 -2 -1 --------- Run | Yrd Mat Min Exi Min Mat Sto Rec Fac Ext Cet Arc Fac Gar Fac Was Fac Gar Fac Res Res Acc Distress Signals 26 | . . . . . 1 . . 2 3 2 . 2 . . . 1 1 3 10 1 . Communications Jammed 10 | . . . . . . . . . . . . . . . . . . . . 1 9 Distress Signals 10 | . . . . . . . . . . . . . . . . . . . . 1 9 Times Spotted 474 | . 24 10 . 2 26 46 10 43 50 10 18 12 32 1 . 6 30 49 23 10 72 Peak Tracking Total 14 | . 3 2 . 2 7 9 4 5 6 5 2 6 7 1 . 2 11 14 5 5 9 Tactical Retreats 18 | . 1 . . . 2 1 . 3 2 . . . . . . . 1 1 . 1 6 Traps | -11 -10 -10 -10 -9 -8 -8 -8 -6 -6 -6 -6 -5 -5 -4 -4 -4 -4 -4 -3 -2 -1 ------- Run | Yrd Mat Min Exi Min Mat Sto Rec Fac Ext Cet Arc Fac Gar Fac Was Fac Gar Fac Res Res Acc Traps Triggered 23 | . 1 . . . 3 . . . 4 . . 1 7 1 . . . 4 . 1 1 Indirectly 5 | . . . . . . . . . . . . . 2 . . . . 3 . . . Trap Hack Attempts 1 | . . . . . . . . . . . . . . 1 . . . . . . . Triggered . | . . . . . . . . . . . . . . . . . . . . . . Disarmed . | . . . . . . . . . . . . . . . . . . . . . . Reprogrammed 1 | . . . . . . . . . . . . . . 1 . . . . . . . Reused . | . . . . . . . . . . . . . . . . . . . . . . Traps Extracted . | . . . . . . . . . . . . . . . . . . . . . . Installed . | . . . . . . . . . . . . . . . . . . . . . . Triggered . | . . . . . . . . . . . . . . . . . . . . . . Machines | -11 -10 -10 -10 -9 -8 -8 -8 -6 -6 -6 -6 -5 -5 -4 -4 -4 -4 -4 -3 -2 -1 ---------- Run | Yrd Mat Min Exi Min Mat Sto Rec Fac Ext Cet Arc Fac Gar Fac Was Fac Gar Fac Res Res Acc Machines Disabled 33 | . 2 . . . 1 3 . 6 5 . 3 . 3 . . 1 2 2 . 1 4 Max in Single Turn 2 | . 1 . . . 1 1 . 2 1 . . . 1 . . 1 1 2 . 1 1 Garrison Access 7 | . . . . . . 1 . . . . . . . . . . . 2 . 1 3 Garrison Relay 3 | . . . . . . . . . . . . . 2 . . . 1 . . . . Machines Repaired . | . . . . . . . . . . . . . . . . . . . . . . Machines Dismantled . | . . . . . . . . . . . . . . . . . . . . . . Machines Sabotaged . | . . . . . . . . . . . . . . . . . . . . . . Overloaded Fab Kills . | . . . . . . . . . . . . . . . . . . . . . . Hacking | -11 -10 -10 -10 -9 -8 -8 -8 -6 -6 -6 -6 -5 -5 -4 -4 -4 -4 -4 -3 -2 -1 --------- Run | Yrd Mat Min Exi Min Mat Sto Rec Fac Ext Cet Arc Fac Gar Fac Was Fac Gar Fac Res Res Acc Machines Accessed 101 | . 9 . 1 1 6 11 14 5 12 1 . 3 3 . . 5 2 6 7 1 14 Terminals 69 | . 7 . . . 6 8 6 3 12 1 . 2 3 . . 4 2 2 4 . 9 Fabricators 3 | . . . . . . . . . . . . . . . . . . 1 1 . 1 Repair Stations 2 | . . . . . . 2 . . . . . . . . . . . . . . . Recycling Units 10 | . 2 . . . . . 6 . . . . . . . . . . 1 1 . . Scanalyzers 3 | . . . . . . . . 1 . . . . . . . . . . 1 . 1 Garrison Access 10 | . . . . . . 1 . 1 . . . 1 . . . 1 . 2 . 1 3 Total Hacks 228 | . 26 . 1 1 24 27 52 9 21 1 . 4 6 . . 8 2 13 13 1 19 Successful 124 | . 13 . 1 1 13 18 43 3 7 . . 3 3 . . 2 1 5 5 1 5 Failed 104 | . 13 . . . 11 9 9 6 14 1 . 1 3 . . 6 1 8 8 . 14 Catastrophic 29 | . 1 . . . 1 3 1 3 6 . . . 1 . . 1 . 2 3 . 7 Database Lockouts . | . . . . . . . . . . . . . . . . . . . . . . Manual 134 | . 23 . . . 23 16 21 5 15 1 . 2 . . . 3 . 10 5 . 10 Terminals 159 | . 24 . . . 24 21 19 5 21 1 . 3 6 . . 7 2 5 7 . 14 Fabricators 6 | . . . . . . . . . . . . . . . . . . 2 3 . 1 Repair Stations 5 | . . . . . . 5 . . . . . . . . . . . . . . . Recycling Units 12 | . 2 . . . . . 7 . . . . . . . . . . 2 1 . . Scanalyzers 5 | . . . . . . . . 2 . . . . . . . . . . 2 . 1 Garrison Access 13 | . . . . . . 1 . 2 . . . 1 . . . 1 . 4 . 1 3 Terminal Hacks 57 | . 3 . 1 1 5 6 29 . 4 . . 2 3 . . 1 1 . 1 . . Record 25 | . . . 1 . . . 24 . . . . . . . . . . . . . . Part Schematic 1 | . 1 . . . . . . . . . . . . . . . . . . . . Robot Analysis 4 | . 1 . . . 1 . 2 . . . . . . . . . . . . . . Prototype ID Bank 2 | . . . . . . 1 1 . . . . . . . . . . . . . . Open Door 6 | . . . . 1 . 2 . . 2 . . . 1 . . . . . . . . Open DSF 3 | . . . . . . . . . . . . 1 . . . 1 . . 1 . . Branch Access Points 1 | . . . . . 1 . . . . . . . . . . . . . . . . Emergency Access Points 2 | . . . . . . . . . . . . . 1 . . . 1 . . . . Unreport Threat 4 | . . . . . 1 1 . . 2 . . . . . . . . . . . . Locate Traps 4 | . 1 . . . 2 1 . . . . . . . . . . . . . . . Garrison Status 1 | . . . . . . . . . . . . 1 . . . . . . . . . Registered Prototypes 1 | . . . . . . 1 . . . . . . . . . . . . . . . Garrison Registry 1 | . . . . . . . . . . . . . 1 . . . . . . . . Release Object 2 | . . . . . . . 2 . . . . . . . . . . . . . . Fabricator Hacks . | . . . . . . . . . . . . . . . . . . . . . . Repair Station Hacks 3 | . . . . . . 3 . . . . . . . . . . . . . . . Scan Component 2 | . . . . . . 2 . . . . . . . . . . . . . . . Repair 1 | . . . . . . 1 . . . . . . . . . . . . . . . Recycling Unit Hacks 1 | . . . . . . . 1 . . . . . . . . . . . . . . Retrieve Components 1 | . . . . . . . 1 . . . . . . . . . . . . . . Scanalyzer 2 | . . . . . . . . 2 . . . . . . . . . . . . . Insert Component 1 | . . . . . . . . 1 . . . . . . . . . . . . . Analyze 1 | . . . . . . . . 1 . . . . . . . . . . . . . Garrison Access Hacks 10 | . . . . . . 1 . . . . . 1 . . . 1 . 3 . 1 3 Unlock Access 4 | . . . . . . . . . . . . 1 . . . 1 . 2 . . . Seal Access 6 | . . . . . . 1 . . . . . . . . . . . 1 . 1 3 Unauthorized Hacks 51 | . 10 . . . 8 8 13 1 3 . . . . . . . . 2 4 . 2 Terminals 38 | . 8 . . . 8 8 7 1 3 . . . . . . . . . 1 . 2 Assimilate 1 | . . . . . . 1 . . . . . . . . . . . . . . . Botnet 15 | . 2 . . . 2 2 2 1 3 . . . . . . . . . 1 . 2 Operators 2 | . 1 . . . 1 . . . . . . . . . . . . . . . . Skim 20 | . 5 . . . 5 5 5 . . . . . . . . . . . . . . Fabricators 3 | . . . . . . . . . . . . . . . . . . 1 2 . . Liberate 1 | . . . . . . . . . . . . . . . . . . . 1 . . Haulers 2 | . . . . . . . . . . . . . . . . . . 1 1 . . Repair Stations . | . . . . . . . . . . . . . . . . . . . . . . Recycling Units 10 | . 2 . . . . . 6 . . . . . . . . . . 1 1 . . Recyclers 1 | . . . . . . . . . . . . . . . . . . 1 . . . Tunnel 9 | . 2 . . . . . 6 . . . . . . . . . . . 1 . . Scanalyzers . | . . . . . . . . . . . . . . . . . . . . . . Garrison Access . | . . . . . . . . . . . . . . . . . . . . . . Data Cores Recovered . | . . . . . . . . . . . . . . . . . . . . . . Used . | . . . . . . . . . . . . . . . . . . . . . . Hacking Detections 75 | . 7 . . . 5 9 5 4 11 1 . 3 2 . . 5 1 6 5 . 11 Full Trace Events 6 | . . . . . . . 1 1 1 . . . . . . 1 . . 1 . 1 Feedback Events 1 | . . . . . . . . . . . . . . . . . . . . . 1 Corruption 1 | . . . . . . . . . . . . . . . . . . . . . 1 Feedback Blocked . | . . . . . . . . . . . . . . . . . . . . . . Robot Schematics Acquired . | . . . . . . . . . . . . . . . . . . . . . . Robots Built . | . . . . . . . . . . . . . . . . . . . . . . Authchips . | . . . . . . . . . . . . . . . . . . . . . . Time . | . . . . . . . . . . . . . . . . . . . . . . Total Robot Build Rating . | . . . . . . . . . . . . . . . . . . . . . . Part Schematics Acquired 2 | . 1 . . . . . . 1 . . . . . . . . . . . . . Parts Built . | . . . . . . . . . . . . . . . . . . . . . . Authchips . | . . . . . . . . . . . . . . . . . . . . . . Time . | . . . . . . . . . . . . . . . . . . . . . . Total Part Build Rating . | . . . . . . . . . . . . . . . . . . . . . . Part Studies Acquired . | . . . . . . . . . . . . . . . . . . . . . . Parts Repaired 1 | . . . . . . 1 . . . . . . . . . . . . . . . Time 53 | . . . . . . 53 . . . . . . . . . . . . . . . Parts Recycled . | . . . . . . . . . . . . . . . . . . . . . . Recycled Matter . | . . . . . . . . . . . . . . . . . . . . . . Retrieved Matter . | . . . . . . . . . . . . . . . . . . . . . . Retrieved Components 4 | . . . . . . . 4 . . . . . . . . . . . . . . Parts Scanalyzed 1 | . . . . . . . . 1 . . . . . . . . . . . . . Part Schematics Acquired 1 | . . . . . . . . 1 . . . . . . . . . . . . . Parts Damaged . | . . . . . . . . . . . . . . . . . . . . . . Bothacking | -11 -10 -10 -10 -9 -8 -8 -8 -6 -6 -6 -6 -5 -5 -4 -4 -4 -4 -4 -3 -2 -1 ------------ Run | Yrd Mat Min Exi Min Mat Sto Rec Fac Ext Cet Arc Fac Gar Fac Was Fac Gar Fac Res Res Acc Used RIF Installer 2 | . . . . . . . . . . . . . 1 . . . 1 . . . . Structural Interface 1 | . . . . . . . . . . . . . . . . . 1 . . . . Robots Hacked 7 | . . . . . . . 6 . . . . . . . . . . . 1 . . Non-combat 5 | . . . . . . . 4 . . . . . . . . . . . 1 . . Combat 2 | . . . . . . . 2 . . . . . . . . . . . . . . Robot Hacks Applied 11 | . . . . . . . 7 . . . . . . . . . . . 4 . . parse_system 7 | . . . . . . . 7 . . . . . . . . . . . . . . purge_threat 2 | . . . . . . . . . . . . . . . . . . . 2 . . block_reporting 1 | . . . . . . . . . . . . . . . . . . . 1 . . formatsys_low 1 | . . . . . . . . . . . . . . . . . . . 1 . . Relay Couplers Released 12 | . . . . . . . . . . . . . 8 . . . 3 1 . . . Machine Destruction 12 | . . . . . . . . . . . . . 8 . . . 3 1 . . . Attached 1 | . . . . . . . . . . . . . . . . . . . 1 . . Fabnet Peak Effective % . | . . . . . . . . . . . . . . . . . . . . . . Robots Rewired 23 | . . . . . . . 14 . 4 . . . 2 . . . 3 . . . . Allies Hacked 2 | . . . . . . . . 2 . . . . . . . . . . . . . Hacks Repelled . | . . . . . . . . . . . . . . . . . . . . . . Allies | -11 -10 -10 -10 -9 -8 -8 -8 -6 -6 -6 -6 -5 -5 -4 -4 -4 -4 -4 -3 -2 -1 -------- Run | Yrd Mat Min Exi Min Mat Sto Rec Fac Ext Cet Arc Fac Gar Fac Was Fac Gar Fac Res Res Acc Total Allies 64 | . . . . . . 13 14 . 6 5 . . 2 . 20 . 3 . 1 . . Largest Group 21 | . . . . . . 10 21 15 5 6 4 . 2 . 20 17 14 11 1 . . Highest-Rated Group 755 | . . . . . . 173 310 238 271 639 447 . 75 . 755 612 490 401 45 . . Highest-Rated Ally 159 | . . . . . . 31 29 29 159 159 159 . 46 . 50 47 47 47 45 . . Total Orders 43 | . . . . . . 17 19 1 . 4 2 . . . . . . . . . . STAY 11 | . . . . . . 1 8 1 . . 1 . . . . . . . . . . ROAM 19 | . . . . . . 16 . . . 2 1 . . . . . . . . . . FOLLOW 13 | . . . . . . . 11 . . 2 . . . . . . . . . . . Ally Attacks 543 | . . . . . . 129 45 38 62 35 23 . 6 . . 51 88 66 . . . Total Damage 11288 | . . . . . . 1498 708 435 1957 1402 804 . 148 . . 811 1888 1637 . . . Kills 83 | . . . . . . 16 7 4 18 7 3 . 2 . . 5 13 8 . . . Allies Corrupted 3 | . . . . . . . . . . . . . . . . . . 3 . . . Allies Melted . | . . . . . . . . . . . . . . . . . . . . . . Intel | -11 -10 -10 -10 -9 -8 -8 -8 -6 -6 -6 -6 -5 -5 -4 -4 -4 -4 -4 -3 -2 -1 ------- Run | Yrd Mat Min Exi Min Mat Sto Rec Fac Ext Cet Arc Fac Gar Fac Was Fac Gar Fac Res Res Acc Active Infowar (turns) 14168 | 180 1330 937 303 592 1028 772 . 653 618 . . 254 348 62 1113 395 512 863 1882 792 1534 Optics 5956 | . . . . . . . . . . . . . . . . 373 512 863 1882 792 1534 Sensors 2047 | . . 7 . . . 772 . . . . . . . . . . . . . 50 1218 IFF 2095 | . . . . . . . . . . . . . . . . 256 . 220 996 623 . Terrain 2797 | . . . . . . . . . . . . . . . . . . . 1686 73 1038 Seismic 7445 | 180 1330 930 303 592 1028 . . 653 618 . . 254 348 62 1113 19 . . . . 15 Jamming 1598 | . . . . . . . . . . . . . . . . . . . . 210 1388 Robot Analysis Total 4 | . 1 . . . 1 . 2 . . . . . . . . . . . . . . Derelict Logs Recovered 4 | . . 1 . 3 . . . . . . . . . . . . . . . . . Drone Launches 16 | . . . . . . 16 . . . . . . . . . . . . . . . Drone Recoveries 1 | . . . . . . 1 . . . . . . . . . . . . . . . Exploration | -11 -10 -10 -10 -9 -8 -8 -8 -6 -6 -6 -6 -5 -5 -4 -4 -4 -4 -4 -3 -2 -1 ------------- Run | Yrd Mat Min Exi Min Mat Sto Rec Fac Ext Cet Arc Fac Gar Fac Was Fac Gar Fac Res Res Acc Turns Passed 24109 | 291 1399 1057 304 676 1224 1635 5253 945 1496 716 712 277 971 62 1113 395 512 863 1882 792 1534 Spaces Moved 14885 | 133 742 618 216 481 667 808 2547 478 876 399 332 195 847 72 882 290 355 524 1242 705 1476 Core . | . . . . . . . . . . . . . . . . . . . . . . Treads 1853 | 119 75 13 . . . . 103 . 41 293 191 . 30 . 57 . . . 638 293 . Legs 3362 | 14 . . . . . . . 182 791 98 141 195 86 . 182 . 233 524 604 . 312 Wheels 6178 | . 667 605 216 481 667 808 2438 296 . . . . . . . . . . . . . Hover 398 | . . . . . . . . . 44 8 . . . . 1 290 55 . . . . Flight 3094 | . . . . . . . 6 . . . . . 731 72 642 . 67 . . 412 1164 Fastest Speed 34 | 120 100 140 140 135 98 135 122 116 94 121 103 103 73 73 73 117 71 123 123 70 34 Average Speed 120 | 155 128 143 140 136 128 144 151 135 131 132 112 103 77 73 83 117 112 123 128 92 71 Slowest Speed 320 | 160 240 320 140 150 165 150 226 165 183 163 133 103 103 73 150 117 123 138 138 123 137 Overloaded Moves 14 | . . . . . . . . . . . . . . . . . . . . . 14 Propulsion Burnouts . | . . . . . . . . . . . . . . . . . . . . . . Robots Hopped 8 | . . . . . . . . . . . . . . . . . . . . . 8 Potential Cave-ins 2 | . . . . . . . . . . . . . . . . . . . . 2 . Cave-ins Triggered . | . . . . . . . . . . . . . . . . . . . . . . Exploration Rate (%) 55 | 8 91 89 61 99 51 73 98 17 87 70 88 6 62 4 97 10 72 21 36 16 54 Regions Visited 21 Branch Regions 8 Pre-discovered Areas 14 | . 3 . 1 . 1 . 8 . . . . . . . . . . . 1 . . Known Exits Taken 11 | . . 1 1 1 1 1 1 1 . . 1 1 . . . 1 . . . 1 . Unknown Exits Taken 6 | 1 1 . . . . . . . 1 1 . . . . . . . 1 1 . . Scrap Searched 5 | . . 1 . 4 . . . . . . . . . . . . . . . . . Spaces Dug 97 | . 1 . . . . 13 1 6 13 . 1 . 7 . . . 15 13 6 4 17 Terrain Destroyed 1085 | . 1 . . . 6 74 3 61 208 15 2 4 94 . 10 3 28 68 45 31 432 Melee 16 | . . . . . . . 1 . . . . . 1 . . . . . . . 14 Projectile 136 | . 1 . . . . . 2 13 . . 2 4 9 . 10 3 13 21 13 16 29 AOE 933 | . . . . . 6 74 . 48 208 15 . . 84 . . . 15 47 32 15 389 Terrain Rammed . | . . . . . . . . . . . . . . . . . . . . . . Walls Destroyed . | . . . . . . . . . . . . . . . . . . . . . . Machines Disabled . | . . . . . . . . . . . . . . . . . . . . . . Actions | -11 -10 -10 -10 -9 -8 -8 -8 -6 -6 -6 -6 -5 -5 -4 -4 -4 -4 -4 -3 -2 -1 --------- Run | Yrd Mat Min Exi Min Mat Sto Rec Fac Ext Cet Arc Fac Gar Fac Was Fac Gar Fac Res Res Acc Total 19551 | 172 1079 722 218 492 901 1125 3847 638 1103 584 634 243 1053 81 1204 326 422 650 1488 805 1764 Wait 2815 | 2 231 40 . 4 98 159 1166 16 75 157 249 13 28 2 271 16 5 40 161 37 45 Move 14848 | 132 741 617 215 480 666 807 2546 477 875 398 331 194 845 72 881 289 354 523 1241 704 1460 Hop 7 | . . . . . . . . . . . . . . . . . . . . . 7 Pick Up 165 | 4 21 8 . . 16 14 2 7 9 12 6 5 9 2 5 6 3 7 8 5 16 Fast Attach 35 | 1 . 1 . . 5 2 3 1 5 1 . . 2 . . . . 3 3 2 6 Attach 93 | . 3 2 . . 10 3 3 4 12 1 4 2 12 1 1 . 4 4 5 1 21 Detach 63 | . 2 . . . 2 1 9 1 5 3 4 . 9 . 2 . 4 5 5 1 10 Swap 191 | 3 14 13 2 2 21 43 6 13 14 1 2 2 2 1 2 4 2 9 10 8 17 Drop 148 | 5 11 9 1 1 15 14 18 . 6 5 7 . 4 2 12 1 2 7 9 7 12 Fire 949 | 25 56 32 . 5 68 73 23 116 73 6 14 27 80 . 30 10 32 51 43 38 147 Melee 132 | . . . . . . 1 68 3 12 . 17 . 8 . . . . . . 2 21 Ram 1 | . . . . . . 1 . . . . . . . . . . . . . . . Kick 8 | . . . . . . . . . 2 . . . . . . . . 1 3 . 2 Crush . | . . . . . . . . . . . . . . . . . . . . . . Escape Stasis 50 | . . . . . . . . . 15 . . . 35 . . . . . . . . Rewire 38 | . . . . . . . 3 . . . . . 19 . . . 16 . . . . Trap 1 | . . . . . . . . . . . . . . 1 . . . . . . . Miscellaneous 7 | . . . . . . 7 . . . . . . . . . . . . . . . Route ------- -11/Scrapyard -10/Materials (discovered 6 exits: *Mat x3 / [*Min x2] / Sub) -10/Mines (discovered 3 exits: *Mat x2 / *Exi) -10/Exiles (discovered 2 exits: *Min x2) -9/Mines (discovered 2 exits: *Mat x2) -8/Materials (discovered 4 exits: *Fac x3 / *Sto) -8/Storage (discovered 2 exits: *Fac / *Rec) -8/Recycling -6/Factory (discovered 8 exits: *Fac x4 / Low x2 / *Ext x2) -6/Extension (discovered 2 exits: *Fac / *Cet) -6/Cetus (discovered 3 exits: *Fac x2 / [*Arc]) -6/Archives (discovered 3 exits: *Fac / [*Hub x2]) -5/Factory (discovered 2 exits: [*Upp] / Gar) -5/Garrison (discovered 3 exits: [*Fac x3]) -4/Factory -4/Waste -4/Factory (discovered 2 exits: [*Upp] / Gar) -4/Garrison (discovered 3 exits: *Fac x3) -4/Factory -3/Research (discovered 3 exits: *Res x2 / [*Tes]) -2/Research -1/Access To Epsilon Eridani History --------- Turn | Location | Event 34 | -11/Scrapyard | Discovered new exit (range 1) 292 | -11/Scrapyard | Entered Materials 318 | -10/Materials | Build established: Mutant 446 | -10/Materials | Discovered new exit (range 12) 900 | -10/Materials | Discovered new exit (range 16) 1051 | -10/Materials | Discovered new exit (range 12) 1172 | -10/Materials | Discovered new exit (range 8) 1247 | -10/Materials | Learned Storage garrison access intel 1276 | -10/Materials | Discovered new exit (range 9) 1322 | -10/Materials | Identified exit to Subcaves 1388 | -10/Materials | Learned location of 2 exits from Mines 1484 | -10/Materials | Learned location of Mines (-9) 1514 | -10/Materials | Learned location of 1 exit from Recycling 1535 | -10/Materials | Learned location of 1 exit from Recycling 1567 | -10/Materials | Loaded intel: 11 interactive machine locations 1607 | -10/Materials | Learned 2 Storage zone layouts 1658 | -10/Materials | Learned 4 Subcaves zone layouts 1691 | -10/Materials | Entered Mines 1692 | -10/Mines | Identified exit to Materials 1692 | -10/Mines | Identified exit to Exiles 1730 | -10/Mines | Met a Derelict bent on vengeance 1783 | -10/Mines | Learned 2 Materials zone layouts 1871 | -10/Mines | Core integrity fell below 50% 1968 | -10/Mines | Found a damaged Exp. Sensor Array with a note attached 1973 | -10/Mines | Found Prototype Device 1973 | -10/Mines | Identified Exp. Sensor Array 1997 | -10/Mines | A weapon hastily lodged in a ceiling crevice suddenly fell to the ground 2039 | -10/Mines | Found a Scrap Suit stashed away for nefarious purposes 2143 | -10/Mines | Discovered exit to Materials (range 14) 2741 | -10/Mines | Deemed a non-threat by the Exiles lab entrance 2748 | -10/Mines | Entered Exiles 2749 | -10/Exiles | Identified exit to Mines 2783 | -10/Exiles | Met 8R-AWN 2807 | -10/Exiles | Met EX-HEX 2858 | -10/Exiles | Met EX-DEC 2883 | -10/Exiles | Learned location of Zion (-6) 2908 | -10/Exiles | Met EX-BIN 3052 | -10/Exiles | Entered Mines 3080 | -9/Mines | Learned Materials non-interactive machine intel 3102 | -9/Mines | Learned Materials garrison access intel 3108 | -9/Mines | Found the Drone Emporium 3293 | -9/Mines | Discovered new exit (range 6) 3362 | -9/Mines | Identified exit to Materials 3728 | -9/Mines | Entered Materials 3728 | -8/Materials | Evolved 4 slots: Propulsion x2, Utility x2 3729 | -8/Materials | Identified exit to Factory 3730 | -8/Materials | Loaded intel: 35 non-interactive machine locations 3731 | -8/Materials | Loaded intel: 1 garrison access location 3900 | -8/Materials | Identified exit to Storage 4307 | -8/Materials | Discovered exit to Factory (range 7) 4521 | -8/Materials | Learned location of 2 exits from Factory 4729 | -8/Materials | Learned Storage trap positions 4756 | -8/Materials | Learned 2 Lower Caves zone layouts 4792 | -8/Materials | Learned 2 Storage zone layouts 4839 | -8/Materials | Learned 2 Lower Caves zone layouts 4952 | -8/Materials | Entered Storage 4954 | -8/Storage | Loaded intel: 27 trap records 4955 | -8/Storage | Loaded intel: 1 garrison access location 5754 | -8/Storage | Repaired Broken Katana 6012 | -8/Storage | Discovered exit to Factory (range 16) 6048 | -8/Storage | Met a pair of Derelict thieves 6117 | -8/Storage | Assisted by bots powering up and referring to "LRC-V3" 6118 | -8/Storage | Destroyed 8 combat bots 6152 | -8/Storage | First assault squad dispatched 6203 | -8/Storage | Learned location of 2 exits from Lower Caves 6301 | -8/Storage | Learned 4 Factory zone layouts 6332 | -8/Storage | Learned location of 1 exit from Lower Caves 6348 | -8/Storage | Used back door to open Recycling access 6348 | -8/Storage | Discovered new exit (range 5) 6352 | -8/Storage | Learned location of 2 exits from Lower Caves 6362 | -8/Storage | Build established: Commander-Mutant 6363 | -8/Storage | Learned location of 3 exits from Factory 6364 | -8/Storage | Learned Factory fabricator intel 6375 | -8/Storage | Learned Factory repair station intel 6392 | -8/Storage | Garrison activated, responded to threat 6395 | -8/Storage | Learned Recycling recycling unit intel 6565 | -8/Storage | Identified exit to Recycling 6587 | -8/Storage | Entered Recycling 6587 | -8/Recycling | Accompanied by 9 allies 6588 | -8/Recycling | Met a Zionite searching for Scraptown 6588 | -8/Recycling | Joined Warlord attack on 0b10 via Recycling 6588 | -8/Recycling | Identified exit to Factory 6589 | -8/Recycling | Identified exit to Scraptown 6590 | -8/Recycling | Loaded intel: 6 recycling unit locations 7387 | -8/Recycling | Learned location of 1 exit from Storage 7422 | -8/Recycling | Learned Factory emergency access door positions 7428 | -8/Recycling | Learned location of 1 exit from Storage 7430 | -8/Recycling | Learned Storage terminal intel 7435 | -8/Recycling | Learned location of 1 exit from Extension 7448 | -8/Recycling | Learned location of 1 exit from Recycling 7586 | -8/Recycling | Scanned before Scraplab entrance 8222 | -8/Recycling | Entered Scraplab 8581 | -8/Recycling | Angered Scraplab inhabitants 8680 | -8/Recycling | Found Prototype Device 8680 | -8/Recycling | Identified Scrap Engine 10249 | -8/Recycling | Build established: Commander-Construct 11840 | -8/Recycling | Entered Factory 11840 | -6/Factory | Accompanied by 15 allies 11840 | -6/Factory | Evolved 4 slots: Power x1, Utility x2, Weapon x1 11841 | -6/Factory | Identified exit to Factory 11842 | -6/Factory | Identified exit to Extension 11842 | -6/Factory | Identified exit to Lower Caves 11845 | -6/Factory | Loaded intel: 6 fabricator locations 11846 | -6/Factory | Loaded intel: 6 repair station locations 11921 | -6/Factory | Garrison activated, responded to threat 12081 | -6/Factory | Lost 9 allies 12209 | -6/Factory | P-60 Hacker assimilated allied Serf 3b 12315 | -6/Factory | Garrison activated, responded to threat 12515 | -6/Factory | Build established: Construct 12575 | -6/Factory | Lost 3 parts (1p1n1u) 12585 | -6/Factory | Garrison activated, responded to threat 12785 | -6/Factory | Entered Extension 13023 | -6/Extension | Destroyed 8 combat bots 13334 | -6/Extension | Spotted B-75 Beast 13370 | -6/Extension | Rescued A7 13435 | -6/Extension | Disrupted transfer network 13499 | -6/Extension | Build established: Scavenger-Construct 13639 | -6/Extension | Spotted B-75 Beast 13653 | -6/Extension | Allies destroyed B-75 Beast 13664 | -6/Extension | Core integrity fell below 50% 13693 | -6/Extension | Allies destroyed B-75 Beast 13723 | -6/Extension | Lost 9 parts (2p1n3u3w) 13947 | -6/Extension | Rescued a captive Derelict 14064 | -6/Extension | Build established: Construct 14161 | -6/Extension | Core integrity fell below 20% 14259 | -6/Extension | Discovered new exit (range 6) 14281 | -6/Extension | Entered Cetus 14281 | -6/Cetus | Accompanied by 5 allies (A7) 14286 | -6/Cetus | Acquired a Cetus Manufacturing Module code from A7 14315 | -6/Cetus | Spotted Cetus Guard 14315 | -6/Cetus | Spotted Cetus Guard 14315 | -6/Cetus | Spotted Cetus Guard 14322 | -6/Cetus | Spotted Cetus Guard 14324 | -6/Cetus | Destroyed Cetus Guard 14325 | -6/Cetus | Allies destroyed Cetus Guard 14326 | -6/Cetus | Destroyed Cetus Guard 14328 | -6/Cetus | Destroyed Cetus Guard 14356 | -6/Cetus | Lost 4 allies 14441 | -6/Cetus | Started Cetus Manufacturing Module 14465 | -6/Cetus | Discovered new exit (range 16) 14466 | -6/Cetus | Manufactured an Enhanced Grunt 14491 | -6/Cetus | Manufactured an Enhanced Grunt 14516 | -6/Cetus | Manufactured an Enhanced Grunt 14541 | -6/Cetus | Manufactured an Enhanced Grunt 14566 | -6/Cetus | Manufactured an Enhanced Grunt 14705 | -6/Cetus | Discovered exit to Factory (range 15) 14820 | -6/Cetus | Build established: Commander-Construct 14835 | -6/Cetus | Spotted Cetus Guard 14839 | -6/Cetus | Spotted Cetus Guard 14839 | -6/Cetus | Spotted Cetus Guard 14839 | -6/Cetus | Spotted Cetus Guard 14841 | -6/Cetus | Allies destroyed Cetus Guard 14863 | -6/Cetus | Found Prototype Device 14873 | -6/Cetus | Discovered exit to Factory (range 16) 14883 | -6/Cetus | Met Revision 17 14997 | -6/Cetus | Entered Archives 14997 | -6/Archives | Accompanied by 4 allies (A7) 15072 | -6/Archives | Discovered exit to Factory (range 15) 15103 | -6/Archives | Discovered new exit (range 14) 15318 | -6/Archives | Build established: Construct 15406 | -6/Archives | Discovered new exit (range 16) 15534 | -6/Archives | Identified Exp. Thermal Shield 15709 | -6/Archives | Entered Factory 15709 | -5/Factory | Evolved 2 slots: Utility x2 15728 | -5/Factory | Identified exit to DSF 15881 | -5/Factory | Destroyed 8 combat bots 15905 | -5/Factory | Discovered new exit (range 3) 15985 | -5/Factory | Identified exit to Garrison 15986 | -5/Factory | Entered Garrison 15998 | -5/Garrison | Triggered checkpoint 16032 | -5/Garrison | Garrison Relay disabled 16249 | -5/Garrison | Triggered checkpoint 16251 | -5/Garrison | Triggered checkpoint 16256 | -5/Garrison | Spotted B-75 Beast 16270 | -5/Garrison | Destroyed B-75 Beast 16302 | -5/Garrison | Destroyed 12 combat bots 16340 | -5/Garrison | Triggered checkpoint 16411 | -5/Garrison | Destroyed 7 combat bots 16534 | -5/Garrison | Discovered new exit (range 14) 16592 | -5/Garrison | Triggered checkpoint 16701 | -5/Garrison | Discovered new exit (range 56) 16701 | -5/Garrison | Discovered new exit (range 45) 16701 | -5/Garrison | Discovered new exit (range 19) 16750 | -5/Garrison | Installed Relay Interface Framework 16913 | -5/Garrison | Build established: Scavenger-Construct 16923 | -5/Garrison | Garrison Relay disabled 16957 | -5/Garrison | Entered Factory 16957 | -4/Factory | Evolved 2 slots: Propulsion x1, Weapon x1 17007 | -4/Factory | Spotted B-86 Titan 17019 | -4/Factory | Manually triggered Chute Trap 17019 | -4/Factory | Sucked down chute 17019 | -4/Factory | Entered Waste 17020 | -4/Waste | Joined by Warlord forces that had cleared the area 17093 | -4/Waste | Discovered new exit (range 16) 17134 | -4/Waste | Found Broken Gamma Bomb Array 17525 | -4/Waste | Build established: Construct 18132 | -4/Waste | Entered Factory 18132 | -4/Factory | Accompanied by 17 allies 18195 | -4/Factory | Identified exit to DSF 18455 | -4/Factory | Lost 3 allies 18458 | -4/Factory | Discovered new exit (range 5) 18481 | -4/Factory | Identified exit to Garrison 18499 | -4/Factory | Garrison activated, responded to threat 18527 | -4/Factory | Entered Garrison 18527 | -4/Garrison | Accompanied by 14 allies 18565 | -4/Garrison | Triggered checkpoint 18577 | -4/Garrison | Garrison Relay disabled 18616 | -4/Garrison | Expanded RIF knowledge: Structural Interface 18628 | -4/Garrison | Spotted B-86 Titan 18630 | -4/Garrison | Triggered checkpoint 18632 | -4/Garrison | Triggered checkpoint 18663 | -4/Garrison | Allies destroyed B-86 Titan 18668 | -4/Garrison | Destroyed 8 combat bots 18683 | -4/Garrison | Triggered checkpoint 18685 | -4/Garrison | Triggered checkpoint 18687 | -4/Garrison | Lost 5 allies 18771 | -4/Garrison | Triggered checkpoint 18831 | -4/Garrison | Discovered new exit (range 9) 18941 | -4/Garrison | Discovered new exit (range 14) 19003 | -4/Garrison | Triggered checkpoint 19012 | -4/Garrison | Discovered new exit (range 6) 19039 | -4/Garrison | Entered Factory 19039 | -4/Factory | Accompanied by 11 allies 19090 | -4/Factory | Identified exit to Garrison 19386 | -4/Factory | Lost 4 allies 19539 | -4/Factory | First assault squad dispatched 19803 | -4/Factory | Garrison activated, responded to threat 19846 | -4/Factory | Lost 4 allies 19887 | -4/Factory | Identified exit to Garrison 19890 | -4/Factory | Discovered new exit (range 11) 19902 | -4/Factory | Entered Research 19902 | -3/Research | Evolved 2 slots: Utility x2 19942 | -3/Research | Identified exit to DSF 20102 | -3/Research | Revision forces began assault on 0b10 20152 | -3/Research | Met up with Revision 17++ 20273 | -3/Research | Found Unknown Launcher 20273 | -3/Research | Identified Fusion Bomb Launcher 20315 | -3/Research | Build established: Scavenger-Construct 20567 | -3/Research | Discovered new exit (range 7) 20602 | -3/Research | Research terminal network offline 20951 | -3/Research | Lost 6 allies 21052 | -3/Research | Lost 3 allies 21286 | -3/Research | Spotted Striker 21295 | -3/Research | Destroyed Striker 21360 | -3/Research | Discovered new exit (range 21) 21742 | -3/Research | Discovered new exit (range 8) 21784 | -3/Research | Entered another Research area 21784 | -2/Research | Evolved 2 slots: Power x1, Propulsion x1 21798 | -2/Research | Discovered new exit (range 22) 21879 | -2/Research | Build established: Construct 22214 | -2/Research | Allied Derelicts emerged from ambush trap array 22331 | -2/Research | Lost 3 allies 22575 | -2/Research | Identified exit to Access 22576 | -2/Research | Entered Access 22576 | -1/Access | Evolved 2 slots: Utility x2 22659 | -1/Access | Garrison activated, responded to threat 22883 | -1/Access | Build established: Ninja 23061 | -1/Access | Found Fusion Bomb Launcher 23576 | -1/Access | First assault squad dispatched 23635 | -1/Access | Spotted B-99 Colossus 23988 | -1/Access | Destroyed 7 combat bots 23993 | -1/Access | System corruption reached 10% 24004 | -1/Access | Garrison activated, responded to threat 24029 | -1/Access | Destroyed 9 combat bots 24032 | -1/Access | Lost 8 parts (2p3u3w) 24088 | -1/Access | Door terminal overloaded 24091 | -1/Access | Discovered new exit (range 9) 24098 | -1/Access | Identified exit to Surface 24110 | *** | Escaped! Last Messages --------------- Feedback: System corruption (+1%). 24087_ ALERT: Suspicious activity at Terminal A001. Dispatching Investigation squad. 24088_ System corrupted: IFF burst signal emitted. 24088_ System overload, Sealed Barrier opened. [Achievement: Just Shoot The Terminal] 24088_ Terminal disabled. 24091_ Main Access Shell breached. 24091_ EXIT=FOUND 24094_ The Access Shell folds into the floor. 24097_ Fusion Bomb Launcher destroyed. 24098_ EXIT=IDENTIFIED: SURFACE 24102_ G-73 Enforcer destroyed. 24104_ The unstable cave ceiling collapses. 24104_ Destroyed Hvy. Laser. 24108_ G-73 Enforcer destroyed. 24108_ Destroyed Lgt. Quantum Reactor. 24110_ System corrupted: Component data lost. [Achievement: Force of Scrap] Map ----- +----------------------------------------------------+ | ?###???????# #??????????????????????????????????? | | ???????????# #??????????????????????????????????? | | ???????????# #??????????????????????????????????? | | ?#########?# #??????????????????????????????????? | | ?# ?# #??????????????????????????????????? | | ?# # #??????????????????????????????????? | | ?# # #??????????????????????????????????? | | ?# + #?######???????????????????????????? | | ?# # ### #####??????????????????????? | | ?# # H# ###????????????????????? | | ?#! ?# ########## #????????? | | ?# ?# +????????? | | ?########??# g #????????? | | ?????????###+# ""#?????????????????? | | ?????????# ""#?????????????????? | | ?????????# ""#?????????????????? | | ?????????# #?????????????????? | | ?????????# ""#?????????????????? | | ?????????# ""#?????????????????? | | ?????????# ""##????????????????? | | ?????????# ! # #????????????????? | | ?????????# ### ##????????????????? | | ?????????# #?# #?????????????????? | | ?????????##########?# #?????????????????? | | ????????????????????# #?????????????????? | | ????????????????????# @" #?????????????????? | | ????????????????????# "" #?????????????????? | | ????????????????????# #?????????????????? | | ????????????????????# #?????????????????? | | ????????????????????# #?????????????????? | | ????????????????????#""""""""""#?????????????????? | | ?????????????????????????????????????????????????? | | ?????????????????????????????????????????????????? | | ?????????????????????????????????????????????????? | | ?????????????????????????????????????????????????? | | ?????????????????????????????????????????????????? | | ?????????????????????????????????????????????????? | | ?????????????????????????????????????????????????? | | ?????????????????????????????????????????????????? | | ?????????????????????????????????????????????????? | | ?????????????????????????????????????????????????? | | ?????????????????????????????????????????????????? | | ?????????????????????????????????????????????????? | | ?????????????????????????????????????????????????? | | ?????????????????????????????????????????????????? | | ?????????????????????????????????????????????????? | | ?????????????????????????????????????????????????? | | ?????????????????????????????????????????????????? | | ?????????????????????????????????????????????????? | | ?????????????????????????????????????????????????? | +----------------------------------------------------+ Best States ------------- Heat Dissipation 90 Coolant Potential 65 Energy Generation 82 Energy Capacity 785 Matter Stores 300 Matter Capacity 300 Sight Range 22 Robot Scan Range 20 Terrain Scan Range 24 Terrain Scan Density 10 Jamming Range 14 Base Temperature (-) 200 Armor Coverage 600 Power Shielding 33 Propulsion Shielding 33 Phase Shifting 15 Evasion (%) 78 Targeting Accuracy 8 Core Analysis 6 Recoil Reduction 5 Offensive Hacking 24 Relay Coupler Types 1 Relay Coupler Value 31 Item Schematics ----------------- Hcp. Storage Unit | -10/Materials | Hacked Seismic Detector | -6/Factory | Scanalyzed Robot Schematics ------------------ None Fabricated ------------ Nothing Repaired ---------- Katana | 32% | -8/Storage | Broken Studied --------- None Alien Tech Used ----------------- None Achievements -------------- Force of Scrap Join The Dark Side Just Shoot The Terminal Let Me Out Of Here Mindtrick Not So Scrappy Scrappetite Wheee! You Will Be Upgraded Challenges ------------ None Game ------ Seed BeamRiotPod Manual? 0 Play Time 07:17:12 Cumulative 186.1 hours Start 2025.11.09 @ 14:45:01 End 2025.11.23 @ 11:51:10 Sessions 9 Manual Loads 0 Difficulty Rogue Special Mode None Game No. 75 Rogue 71 Adventurer 1 Explorer 3 Win Type 0 Total 6 Types 4/1/1/0/0/0/0/0/0/0 Lore% 66 Gallery% 67 Achievement% 48 Wizard Run 0 Options --------- Layout 2 ASCII 0 Keyboard 1 Movement Numpad Keybinds 0 Fullscreen 1 Font 32/SmallcapsGlow Map View 50x44 Zoom Use 0% Tactical HUD 1 Map Filters NONE Filters NONE Steam 1 RUN: 9f16784b-e712-46a0-b0a4-7812d99deafc